bitfinex/quotes_BTCUSD_20250219
["timestamp","ask_amount","ask_price","bid_price","bid_amount"]
[1739935959066,0.905578,95957.0,95928.0,0.0812]
[1739935960621,0.905578,95958.0,95928.0,0.0812]
[1739935960850,0.004,95957.0,95928.0,0.0812]
[1739935961057,1.06564165,95956.0,95928.0,0.0812]
[1739935961210,0.905578,95955.0,95928.0,0.0812]
[1739935962426,0.909578,95955.0,95928.0,0.0812]
[1739935962744,0.905578,95954.0,95928.0,0.0812]
[1739935963934,0.911578,95955.0,95928.0,0.0812]
[1739935964068,1.01408165,95955.0,95928.0,0.0812]
[1739935964270,0.905578,95954.0,95928.0,0.0812]
[1739935964472,0.905578,95954.0,95929.0,0.0485]
[1739935964670,0.909578,95954.0,95929.0,0.0485]
[1739935964902,0.905578,95953.0,95930.0,0.0802]
[1739935965105,0.905578,95953.0,95932.0,0.0802]
[1739935965697,0.905578,95962.0,95932.0,0.0802]
[1739935966773,0.004,95954.0,95932.0,0.0802]
[1739935967015,0.05756,95953.0,95932.0,0.0802]
[1739935967245,0.02039929,95935.0,95934.0,0.0809]
[1739935967485,0.48872529,95935.0,95934.0,0.0809]
[1739935967790,0.30418629,95935.0,95934.0,0.0809]
[1739935967981,0.283787,95935.0,95934.0,0.0809]
[1739935968182,0.905578,95962.0,95934.0,0.0809]
[1739935968500,0.004,95954.0,95934.0,0.09620555]
[1739935968704,0.905578,95953.0,95934.0,0.09620555]
[1739935969933,0.905578,95962.0,95934.0,0.09620555]
[1739935970278,0.0004254,95935.0,95934.0,0.09720555]
[1739935970480,0.2055824,95935.0,95934.0,0.0809]
[1739935970677,0.3583244,95935.0,95934.0,0.0809]
[1739935970905,0.3752554,95935.0,95934.0,0.0809]
[1739935971083,0.0004254,95935.0,95934.0,0.0809]
[1739935971444,0.6500344,95935.0,95934.0,0.0809]
[1739935973102,0.6500344,95935.0,95934.0,0.0839]
[1739935977309,0.49039817,95935.0,95934.0,0.0839]
[1739935977587,0.746368,95962.0,95934.0,0.0839]
[1739935977837,0.08137248,95961.0,95934.0,0.0839]
[1739935978107,0.746368,95960.0,95934.0,0.0839]
[1739935979137,0.746368,95960.0,95934.0,0.0809]
[1739935980145,0.752368,95960.0,95934.0,0.0809]
[1739935980369,0.746368,95959.0,95934.0,0.0809]
[1739935980588,0.08567405,95958.0,95934.0,0.0809]
[1739935980789,0.746368,95957.0,95934.0,0.0809]
[1739935981133,0.746042,95956.0,95934.0,0.0809]
[1739935981338,0.746042,95955.0,95934.0,0.0809]
[1739935981537,0.746042,95954.0,95934.0,0.0809]
[1739935981746,0.746042,95953.0,95934.0,0.0809]
[1739935982137,0.746042,95952.0,95934.0,0.0809]
[1739935982275,0.746042,95951.0,95934.0,0.0809]
[1739935982476,0.746042,95950.0,95934.0,0.0809]
[1739935982683,0.746042,95949.0,95934.0,0.0809]
[1739935982874,0.746042,95948.0,95934.0,0.0809]
[1739935983080,0.003,95953.0,95934.0,0.0809]
[1739935983081,0.746042,95947.0,95934.0,0.0809]
[1739935983282,0.746042,95946.0,95934.0,0.0809]
[1739935983483,0.746042,95945.0,95934.0,0.0809]
[1739935983690,0.746042,95944.0,95935.0,0.01299504]
[1739935983902,0.746042,95943.0,95935.0,0.01299504]
[1739935984115,0.746042,95942.0,95935.0,0.01299504]
[1739935984397,0.746042,95941.0,95934.0,0.0809]
[1739935984567,0.746042,95940.0,95934.0,0.0809]
[1739935984762,0.746042,95939.0,95934.0,0.0809]
[1739935985040,0.746042,95938.0,95934.0,0.0809]
[1739935985227,0.746042,95937.0,95934.0,0.0809]
[1739935985426,0.746042,95936.0,95934.0,0.0809]
[1739935985636,0.746042,95935.0,95934.0,0.0809]
[1739935986456,0.746042,95935.0,95934.0,0.0829]
[1739935986768,0.488519,95935.0,95934.0,0.0809]
[1739935986913,0.488519,95935.0,95934.0,0.0839]
[1739935987292,0.488519,95935.0,95934.0,0.09820281]
[1739935987934,0.275492,95935.0,95934.0,0.09820281]
[1739935988453,0.275492,95935.0,95934.0,0.0839]
[1739935988632,0.02082795,95937.0,95934.0,0.0839]
[1739935988810,0.607482,95936.0,95934.0,0.0839]
[1739935989005,0.576129,95936.0,95934.0,0.0839]
[1739935989212,0.607482,95936.0,95934.0,0.0839]
[1739935989865,0.607482,95936.0,95934.0,0.0809]
[1739935990069,0.607482,95936.0,95934.0,0.0829]
[1739935991888,0.746042,95954.0,95934.0,0.0829]
[1739935992222,0.8206623,95954.0,95934.0,0.0829]
[1739935992610,0.746042,95953.0,95934.0,0.0829]
[1739935992828,0.746042,95953.0,95934.0,0.0809]
[1739935993922,0.749042,95953.0,95934.0,0.0809]
[1739935994160,0.746042,95952.0,95934.0,0.0809]
[1739935995193,0.746042,95952.0,95934.0,0.0817504]
[1739935995654,0.746042,95953.0,95934.0,0.0817504]
[1739935995809,0.003,95952.0,95934.0,0.0817504]
[1739935996013,0.746042,95951.0,95934.0,0.0817504]
[1739935996702,0.749042,95953.0,95934.0,0.0817504]
[1739935997098,0.749042,95953.0,95945.0,0.08374464]
[1739935997099,0.152767,95952.0,95945.0,0.08374464]
[1739935997306,0.003,95951.0,95948.0,0.1301]
[1739935997663,0.003,95951.0,95948.0,0.1225]
[1739935997887,0.003,95951.0,95947.0,0.01007772]
[1739935998112,0.003,95951.0,95948.0,0.00938224]
[1739935998476,0.000161,95955.0,95948.0,0.00938224]
[1739935998679,0.000161,95955.0,95950.0,0.1235]
[1739935998884,0.003,95953.0,95951.0,0.0782]
[1739935999571,0.003,95953.0,95952.0,0.0453]
[1739935999766,0.000161,95955.0,95952.0,0.0453]
[1739936000194,0.001,95953.0,95952.0,0.0453]
[1739936000525,0.0438512,95993.0,95952.0,0.3699]
[1739936000726,0.023,95989.0,95952.0,0.3699]
[1739936000959,0.023,95987.0,95952.0,0.3699]
[1739936001169,0.02086312,95961.0,95952.0,0.3699]
[1739936001490,0.167905,95960.0,95952.0,0.3699]
[1739936002031,0.001,95955.0,95952.0,0.3739]
[1739936002221,0.001,95955.0,95952.0,0.3699]
[1739936002421,0.001,95955.0,95953.0,0.0786]
[1739936002867,0.02086312,95961.0,95953.0,0.0786]
[1739936003022,0.001,95955.0,95953.0,0.0786]
[1739936003681,0.002,95955.0,95953.0,0.0836]
[1739936012350,0.002,95955.0,95954.0,0.04635777]
[1739936013066,0.002,95955.0,95954.0,0.12845777]
[1739936014552,0.001,95955.0,95954.0,0.12845777]
[1739936014790,0.0004254,95957.0,95955.0,0.0781]
[1739936015037,0.0004254,95957.0,95955.0,0.0771]
[1739936015972,0.0004254,95957.0,95955.0,0.0821]
[1739936015973,0.0014254,95957.0,95955.0,0.0821]
[1739936018678,0.01070542,96001.0,95955.0,0.0821]
[1739936018859,0.022876,95990.0,95956.0,0.0492]
[1739936019059,0.746042,95989.0,95956.0,0.0492]
[1739936020448,0.0004253,95980.0,95956.0,0.0492]
[1739936020655,0.746042,95979.0,95956.0,0.0492]
[1739936021804,0.746042,95979.0,95957.0,0.0791]
[1739936022018,0.02039884,95962.0,95958.0,0.0496]
[1739936022263,0.02039884,95962.0,95959.0,0.0794]
[1739936022477,0.02039884,95962.0,95959.0,0.12884506]
[1739936022731,0.02039884,95962.0,95960.0,0.0813]
[1739936025384,0.02039884,95962.0,95960.0,0.0863]
[1739936026514,0.0004253,95980.0,95960.0,0.0863]
[1739936026755,0.746042,95979.0,95960.0,0.0863]
[1739936027530,0.746042,95979.0,95960.0,0.0813]
[1739936031447,0.746042,95979.0,95961.0,0.01309]
[1739936032808,0.746042,95979.0,95960.0,0.0821504]
[1739936034537,0.02119423,95962.0,95960.0,0.0821504]
[1739936035797,0.02119423,95962.0,95960.0,0.0871504]
[1739936036714,0.00055668,95980.0,95960.0,0.0871504]
[1739936036921,0.746042,95979.0,95960.0,0.0871504]
[1739936037933,0.746042,95979.0,95960.0,0.0821504]
[1739936038458,0.746042,95979.0,95961.0,0.01317504]
[1739936039012,0.45460019,95979.0,95962.0,0.0832]
[1739936039213,0.05752,95978.0,95962.0,0.0832]
[1739936039431,0.454601,95977.0,95962.0,0.0832]
[1739936039784,0.454601,95979.0,95962.0,0.0832]
[1739936041822,0.01634528,95975.0,95962.0,0.0832]
[1739936042022,0.454601,95974.0,95962.0,0.0832]
[1739936043471,0.02073643,95963.0,95962.0,0.0832]
[1739936043679,0.47533743,95963.0,95962.0,0.0842]
[1739936044453,0.47533743,95963.0,95962.0,0.0832]
[1739936044634,0.47533743,95963.0,95962.0,0.0852]
[1739936046592,0.4709473,95963.0,95962.0,0.0852]
[1739936046822,0.4709473,95963.0,95962.0,0.0688539]
[1739936047090,0.454601,95963.0,95962.0,0.0688539]
[1739936047335,0.023,95978.0,95962.0,0.0688539]
[1739936047541,0.023,95976.0,95962.0,0.0688539]
[1739936047749,0.023,95974.0,95962.0,0.0688539]
[1739936047889,0.454601,95973.0,95962.0,0.0688539]
[1739936049500,0.454601,95973.0,95962.0,0.0668539]
[1739936049703,0.023,95972.0,95962.0,0.0668539]
[1739936049948,0.454601,95971.0,95962.0,0.0668539]
[1739936050145,0.47094718,95971.0,95962.0,0.0668539]
[1739936050351,0.454601,95970.0,95962.0,0.0668539]
[1739936052587,0.023,95969.0,95958.0,0.0496]
[1739936052803,0.023,95969.0,95950.0,0.08]
[1739936052804,0.023,95967.0,95950.0,0.08]
[1739936052974,0.023,95965.0,95950.0,0.08]
[1739936053184,0.023,95962.0,95950.0,0.08]
[1739936053343,0.023,95960.0,95950.0,0.08]
[1739936053547,0.023,95958.0,95950.0,0.08]
[1739936053755,0.023,95956.0,95950.0,0.08]
[1739936053969,0.454601,95955.0,95950.0,0.08]
[1739936054674,0.444921,95955.0,95950.0,0.08]
[1739936055059,0.444921,95954.0,95950.0,0.081]
[1739936055285,0.444921,95953.0,95950.0,0.08]
[1739936055460,0.444921,95952.0,95950.0,0.08]
[1739936055620,0.444921,95951.0,95950.0,0.08]
[1739936056520,0.444921,95951.0,95950.0,0.081]
[1739936056769,0.44496477,95951.0,95931.0,6.4e-07]
[1739936056946,0.15636,95932.0,95931.0,6.4e-07]
[1739936057358,0.15636,95932.0,95931.0,0.03254574]
[1739936057560,0.17270818,95932.0,95931.0,0.03254574]
[1739936058125,0.17270818,95932.0,95931.0,0.03358804]
[1739936058361,0.17370818,95932.0,95931.0,0.03954574]
[1739936059771,0.17270818,95932.0,95931.0,0.16224574]
[1739936060101,0.17370818,95932.0,95931.0,0.16824574]
[1739936060308,0.17370818,95932.0,95931.0,0.48684574]
[1739936060530,0.17470818,95932.0,95931.0,0.49184574]
[1739936060888,0.17370818,95932.0,95931.0,0.48684574]
[1739936061102,0.17470818,95932.0,95931.0,0.49184574]
[1739936061502,0.17270818,95932.0,95931.0,0.48684574]
[1739936061686,0.01634818,95932.0,95931.0,0.48684574]
[1739936062755,0.001,95932.0,95931.0,0.49214574]
[1739936063541,4.377e-05,95951.0,95931.0,0.36314574]
[1739936063749,4.377e-05,95951.0,95946.0,0.08374464]
[1739936063954,4.377e-05,95951.0,95948.0,0.075]
[1739936064173,4.377e-05,95951.0,95950.0,0.075]
[1739936064345,4.377e-05,95951.0,95950.0,0.07604208]
[1739936066290,0.01638971,95951.0,95950.0,0.07604208]
[1739936066507,0.01638971,95951.0,95950.0,0.10055075]
[1739936066706,0.01638971,95951.0,95950.0,0.09950867]
[1739936067764,0.01638971,95951.0,95950.0,0.09550867]
[1739936069094,0.01738971,95951.0,95950.0,0.10250867]
[1739936069497,0.01638971,95951.0,95950.0,0.09550867]
[1739936069747,0.01738971,95951.0,95950.0,0.10250867]
[1739936071373,0.01738971,95951.0,95950.0,0.10355076]
[1739936071576,0.01738971,95951.0,95950.0,0.10250867]
[1739936071940,0.00104377,95951.0,95950.0,0.10250867]
[1739936072151,0.00104377,95951.0,95950.0,0.10355075]
[1739936074150,0.19168979,95997.0,95950.0,0.10355075]
[1739936074354,0.444921,95988.0,95951.0,0.05571954]
[1739936075840,0.444921,95988.0,95952.0,0.40724208]
[1739936076044,0.444921,95988.0,95954.0,0.0781]
[1739936076253,0.444921,95988.0,95956.0,0.0781]
[1739936076645,0.444921,95988.0,95956.0,0.07914201]
[1739936076794,0.444921,95988.0,95957.0,0.05296702]
[1739936077680,0.447921,95988.0,95957.0,0.05296702]
[1739936077894,0.444921,95987.0,95958.0,0.00104201]
[1739936078089,0.444921,95988.0,95960.0,0.0781]
[1739936078308,0.444921,95986.0,95960.0,0.07914197]
[1739936078527,0.444921,95985.0,95961.0,0.0181809]
[1739936078706,0.444921,95987.0,95962.0,0.0781]
[1739936078961,0.444921,95984.0,95962.0,0.0781]
[1739936079168,0.444921,95983.0,95962.0,0.0781]
[1739936079354,0.444921,95987.0,95962.0,0.0781]
[1739936080167,0.444921,95988.0,95962.0,0.0781]
[1739936080356,0.447921,95988.0,95962.0,0.0781]
[1739936080554,0.444921,95987.0,95962.0,0.0781]
[1739936080932,0.444921,95988.0,95962.0,0.0781]
[1739936081136,0.003,95987.0,95962.0,0.09809899]
[1739936081466,0.18188372,95986.0,95962.0,0.09809899]
[1739936081754,0.003,95987.0,95962.0,0.09809899]
[1739936081974,0.0163436,95981.0,95962.0,0.09809899]
[1739936082129,0.181884,95980.0,95962.0,0.09809899]
[1739936083518,0.181884,95985.0,95963.0,0.0526408]
[1739936083738,0.001,95980.0,95963.0,0.0526408]
[1739936083984,0.181884,95979.0,95963.0,0.0526408]
[1739936084690,0.181884,95985.0,95962.0,0.0781]
[1739936084845,0.001,95980.0,95962.0,0.0781]
[1739936085043,0.181884,95979.0,95962.0,0.0781]
[1739936085270,0.181884,95985.0,95962.0,0.0781]
[1739936086260,0.0163435,95980.0,95962.0,0.0781]
[1739936086466,0.181884,95979.0,95963.0,0.0453442]
[1739936087688,0.12704875,95995.0,95963.0,0.0453442]
[1739936087895,0.01634359,95976.0,95963.0,0.04547557]
[1739936088113,0.12704875,95995.0,95963.0,0.04547557]
[1739936088310,4.069346,95994.0,95963.0,0.04547557]
[1739936088511,0.01634364,95973.0,95964.0,0.04989175]
[1739936088718,0.12704875,95995.0,95964.0,0.04989175]
[1739936088922,0.0163437,95971.0,95964.0,0.04989175]
[1739936089368,0.12704875,95995.0,95964.0,0.04989175]
[1739936089536,0.01634375,95970.0,95964.0,0.04989175]
[1739936089974,0.12704875,95995.0,95964.0,0.04989175]
[1739936090200,0.01634375,95969.0,95965.0,0.05044651]
[1739936090405,0.12704875,95995.0,95964.0,0.002]
[1739936090615,0.01634377,95969.0,95964.0,0.002]
[1739936090789,0.01634377,95969.0,95963.0,0.00013137]
[1739936090996,0.12704875,95995.0,95964.0,0.003]
[1739936091170,0.0163438,95968.0,95964.0,0.003]
[1739936091597,0.12704875,95995.0,95963.0,0.00013137]
[1739936091832,0.01634383,95968.0,95964.0,0.12365733]
[1739936092258,0.01274739,95994.0,95964.0,0.12365733]
[1739936092488,0.01634349,95968.0,95964.0,0.12365733]
[1739936092738,0.01274739,95994.0,95964.0,0.0783]
[1739936092972,5.05,95993.0,95964.0,0.0783]
[1739936093416,5.05,95993.0,95964.0,0.0813]
[1739936093648,4.954911,95993.0,95964.0,0.0783]
[1739936093851,5.05,95993.0,95964.0,0.0783]
[1739936094074,5.05,95993.0,95965.0,0.04537733]
[1739936094784,3.605346,95992.0,95965.0,0.04537733]
[1739936095261,3.331553,95992.0,95965.0,0.04537733]
[1739936095501,3.477934,95991.0,95965.0,0.04537733]
[1739936095745,0.005,95993.0,95965.0,0.04537733]
[1739936095988,2.559701,95990.0,95966.0,0.0491]
[1739936096225,2.513701,95989.0,95966.0,0.0491]
[1739936096426,0.01634328,95987.0,95967.0,0.0759]
[1739936096849,1.287445,95986.0,95967.0,0.0759]
[1739936099092,1.289445,95986.0,95967.0,0.0759]
[1739936099292,2.245413,95985.0,95967.0,0.0759]
[1739936100721,0.002,95985.0,95967.0,0.0759]
[1739936100920,2.046861,95984.0,95967.0,0.0759]
[1739936101874,2.14936465,95984.0,95967.0,0.0759]
[1739936102233,3.988415,95983.0,95966.0,0.0491]
[1739936103615,3.990415,95983.0,95966.0,0.0491]
[1739936103820,5.05,95982.0,95966.0,0.0491]
[1739936105257,5.05,95983.0,95966.0,0.0491]
[1739936105589,0.001,95982.0,95966.0,0.0491]
[1739936105798,4.941686,95981.0,95966.0,0.0491]
[1739936106435,5.05,95983.0,95966.0,0.0491]
[1739936106683,5.053,95983.0,95966.0,0.0491]
[1739936106889,5.15250365,95982.0,95966.0,0.0491]
[1739936107074,5.05,95981.0,95966.0,0.0491]
[1739936107271,5.051,95981.0,95966.0,0.0491]
[1739936107478,4.883622,95980.0,95966.0,0.0491]
[1739936108121,0.01483964,95979.0,95966.0,0.0491]
[1739936108321,4.659086,95979.0,95966.0,0.0491]
[1739936108524,4.926503,95981.0,95966.0,0.0491]
[1739936108724,4.798355,95981.0,95966.0,0.0491]
[1739936109469,0.01634426,95978.0,95966.0,0.0491]
[1739936109665,3.873334,95977.0,95966.0,0.0491]
[1739936109872,3.850443,95977.0,95966.0,0.0491]
[1739936110081,3.470106,95977.0,95966.0,0.0491]
[1739936110290,3.56557,95977.0,95966.0,0.0491]
[1739936110536,3.56557,95977.0,95966.0,0.03275572]
[1739936110718,4.691452,95980.0,95966.0,0.03275572]
[1739936110922,4.691497,95980.0,95966.0,0.03275572]
[1739936111611,0.01634421,95977.0,95966.0,0.03275572]
[1739936111745,0.01734421,95977.0,95966.0,0.03275572]
[1739936111943,3.24201,95976.0,95966.0,0.03275572]
[1739936113891,2.83496,95976.0,95966.0,0.03275572]
[1739936114093,3.274223,95976.0,95966.0,0.03275572]
[1739936114292,3.251234,95976.0,95966.0,0.03275572]
[1739936114487,3.277358,95976.0,95963.0,0.00013137]
[1739936114720,3.03301954,95976.0,95963.0,0.00013137]
[1739936114917,4.126644,95976.0,95963.0,0.00013137]
[1739936115122,4.805662,95982.0,95963.0,0.00013137]
[1739936115963,0.001,95976.0,95963.0,0.00013137]
[1739936116121,2.669196,95975.0,95963.0,0.00013137]
[1739936116523,0.002,95982.0,95963.0,0.00013137]
[1739936116776,4.805662,95981.0,95963.0,0.01249955]
[1739936117020,4.805662,95981.0,95963.0,0.00013137]
[1739936117970,0.01634431,95977.0,95963.0,0.00013137]
[1739936118238,3.169699,95976.0,95963.0,0.00013137]
[1739936118432,2.665064,95975.0,95963.0,0.00098177]
[1739936118574,2.817731,95974.0,95963.0,0.00098177]
[1739936118780,3.508836,95976.0,95963.0,0.00098177]
[1739936118959,3.515856,95976.0,95963.0,0.00098177]
[1739936119395,3.516856,95976.0,95963.0,0.00098177]
[1739936119599,3.081236,95975.0,95963.0,0.00098177]
[1739936120533,3.016485,95975.0,95963.0,0.00098177]
[1739936120850,3.047831,95975.0,95963.0,0.00098177]
[1739936121008,3.047852,95975.0,95963.0,0.00098177]
[1739936121192,3.489844,95976.0,95963.0,0.00098177]
[1739936122947,3.490844,95976.0,95963.0,0.00098177]
[1739936123294,3.050965,95975.0,95963.0,0.00098177]
[1739936123494,2.979565,95975.0,95963.0,0.00098177]
[1739936124413,0.023,95986.0,95963.0,0.00098177]
[1739936124414,4.805662,95985.0,95963.0,0.00098177]
[1739936125337,4.805662,95985.0,95964.0,0.00781322]
[1739936125972,4.808662,95985.0,95964.0,0.00781322]
[1739936126179,4.805662,95984.0,95964.0,0.00781322]
[1739936126392,0.01634409,95980.0,95964.0,0.00781322]
[1739936126819,4.727485,95979.0,95964.0,0.00781322]
[1739936126937,4.727485,95979.0,95965.0,0.00859454]
[1739936127577,4.460172,95979.0,95963.0,0.00098177]
[1739936127784,4.805662,95979.0,95963.0,0.00098177]
[1739936128449,4.382903,95979.0,95963.0,0.00098177]
[1739936128734,4.807662,95979.0,95963.0,0.00098177]
[1739936129163,4.01712,95978.0,95963.0,0.00098177]
[1739936129800,0.002,95979.0,95963.0,0.00098177]
[1739936129801,4.480669,95977.0,95963.0,0.00098177]
[1739936129977,2.684501,95976.0,95963.0,0.00098177]
[1739936130358,3.12034,95978.0,95963.0,0.00098177]
[1739936130560,2.408976,95977.0,95964.0,0.08901322]
[1739936130799,3.224939,95978.0,95964.0,0.08901322]
[1739936130983,0.001,95977.0,95964.0,0.08901322]
[1739936131210,2.48821,95976.0,95964.0,0.0812]
[1739936131414,2.177112,95976.0,95964.0,0.0812]
[1739936131650,0.001,95976.0,95964.0,0.0812]
[1739936131824,2.19339,95975.0,95964.0,0.0812]
[1739936132073,0.01634409,95980.0,95964.0,0.0812]
[1739936132074,1.87074,95974.0,95964.0,0.0812]
[1739936132280,0.001,95977.0,95964.0,0.0812]
[1739936132461,0.05744,95976.0,95964.0,0.0812]
[1739936132669,2.46854,95976.0,95964.0,0.0812]
[1739936132868,2.116492,95975.0,95964.0,0.0812]
[1739936133272,2.472835,95976.0,95964.0,0.0812]
[1739936133534,1.756113,95975.0,95964.0,0.0812]
[1739936133712,1.975876,95976.0,95964.0,0.0812]
[1739936133880,4.641058,95981.0,95964.0,0.0812]
[1739936134044,4.805662,95981.0,95964.0,0.0812]
[1739936134248,0.001,95976.0,95964.0,0.0812]
[1739936134485,2.023048,95975.0,95964.0,0.0812]
[1739936134724,1.720243,95974.0,95964.0,0.0812]
[1739936134931,3.908562,95981.0,95965.0,0.048]
[1739936135136,3.986085,95981.0,95965.0,0.048]
[1739936135407,3.340251,95981.0,95965.0,0.048]
[1739936135632,3.957478,95981.0,95965.0,0.048]
[1739936136245,0.01634409,95978.0,95965.0,0.048]
[1739936136448,2.647759,95977.0,95966.0,0.01310322]
[1739936136666,0.0004253,95982.0,95968.0,0.0817]
[1739936136877,0.103693,95981.0,95968.0,0.0817]
[1739936137469,0.001,95976.0,95968.0,0.0817]
[1739936137875,0.0004253,95982.0,95968.0,0.0817]
[1739936138239,0.976379,95981.0,95968.0,0.099738]
[1739936138466,0.0004253,95982.0,95968.0,0.099738]
[1739936138646,0.839289,95981.0,95968.0,0.0817]
[1739936138846,0.001,95976.0,95968.0,0.0817]
[1739936139049,0.0004253,95982.0,95968.0,0.0817]
[1739936139202,0.441388,95981.0,95968.0,0.0817]
[1739936139414,0.168366,95981.0,95971.0,0.0791]
[1739936139610,0.002,95981.0,95971.0,0.0791]
[1739936139814,0.01634318,95978.0,95971.0,0.0791]
[1739936140908,0.001,95976.0,95971.0,0.0791]
[1739936141306,0.01634318,95978.0,95971.0,0.0791]
[1739936141732,0.01734318,95978.0,95971.0,0.0791]
[1739936142163,0.01634318,95978.0,95971.0,0.0791]
[1739936142727,0.001,95976.0,95971.0,0.0791]
[1739936143769,0.0004253,95982.0,95971.0,0.0791]
[1739936144106,0.001,95978.0,95971.0,0.0791]
[1739936144528,0.0004253,95982.0,95971.0,0.0791]
[1739936144733,1.515789,95981.0,95971.0,0.0791]
[1739936144934,0.001,95976.0,95971.0,0.0791]
[1739936145140,0.0004253,95982.0,95971.0,0.0791]
[1739936145350,1.521009,95981.0,95971.0,0.0791]
[1739936145479,0.001,95978.0,95971.0,0.0791]
[1739936145675,0.0004253,95982.0,95971.0,0.0791]
[1739936145881,1.521363,95981.0,95971.0,0.0791]
[1739936146286,0.01634293,95979.0,95971.0,0.0791]
[1739936146487,0.0004253,95982.0,95971.0,0.06275707]
[1739936146689,1.526606,95981.0,95971.0,0.06275707]
[1739936146890,1.297309,95981.0,95971.0,0.06275707]
[1739936147091,0.001,95976.0,95971.0,0.06275707]
[1739936147321,0.0004253,95982.0,95971.0,0.06275707]
[1739936147516,0.01634327,95975.0,95971.0,0.06275707]
[1739936152313,0.0004253,95982.0,95971.0,0.06275707]
[1739936152515,2.291589,95981.0,95971.0,0.06275707]
[1739936152714,2.178367,95981.0,95971.0,0.06275707]
[1739936153506,2.178367,95981.0,95971.0,0.06360807]
[1739936153735,0.10250365,95980.0,95971.0,0.06360807]
[1739936153937,3.148704,95979.0,95964.0,0.0008506]
[1739936154113,2.2719,95978.0,95964.0,0.0008506]
[1739936154265,1.836156,95977.0,95964.0,0.0008506]
[1739936154471,0.0004255,95981.0,95964.0,0.0008506]
[1739936154472,3.170594,95980.0,95964.0,0.0008506]
[1739936154722,0.0024255,95981.0,95964.0,0.0008506]
[1739936154857,4.805662,95980.0,95964.0,0.0008506]
[1739936155066,0.002,95979.0,95964.0,0.0008506]
[1739936155276,0.01634426,95977.0,95964.0,0.0008506]
[1739936155653,3.641954,95976.0,95964.0,0.0008506]
[1739936155872,3.408977,95975.0,95964.0,0.0008506]
[1739936156068,4.26898,95976.0,95964.0,0.0008506]
[1739936156264,3.828491,95975.0,95964.0,0.0008506]
[1739936156475,4.19143,95976.0,95964.0,0.0008506]
[1739936157005,4.29393365,95976.0,95964.0,0.0008506]
[1739936157265,4.699876,95975.0,95964.0,0.0008506]
[1739936157482,4.338039,95974.0,95964.0,0.0008506]
[1739936157682,4.617308,95975.0,95964.0,0.0008506]
[1739936157821,4.298319,95975.0,95964.0,0.0008506]
[1739936158020,4.295184,95975.0,95964.0,0.0008506]
[1739936158329,3.908077,95975.0,95964.0,0.0008506]
[1739936158537,3.548016,95974.0,95964.0,0.0008506]
[1739936158744,3.827282,95975.0,95964.0,0.0008506]
[1739936161433,3.92978565,95975.0,95964.0,0.0008506]
[1739936161640,4.625538,95974.0,95964.0,0.0008506]
[1739936161845,4.584117,95974.0,95964.0,0.0008506]
[1739936162046,3.495928,95973.0,95964.0,0.0008506]
[1739936162268,4.541976,95974.0,95949.0,0.0770508]
[1739936162403,0.01483964,95973.0,95949.0,0.0770508]
[1739936162614,4.756362,95972.0,95949.0,0.0770508]
[1739936163024,0.0823,95970.0,95949.0,0.0008508]
[1739936163303,4.85360905,95969.0,95949.0,0.0008508]
[1739936163518,0.023,95967.0,95949.0,0.0008508]
[1739936163727,4.805662,95966.0,95949.0,0.0008508]
[1739936164998,4.805662,95966.0,95949.0,0.0018508]
[1739936166313,0.0163468,95962.0,95941.0,0.065204]
[1739936166527,4.805662,95961.0,95941.0,0.065204]
[1739936166739,4.805662,95961.0,95949.0,0.001]
[1739936166948,4.805662,95965.0,95941.0,0.065204]
[1739936167161,4.90816565,95965.0,95941.0,0.065204]
[1739936167410,4.805662,95964.0,95941.0,0.065204]
[1739936167625,0.10250365,95965.0,95941.0,0.065204]
[1739936167833,0.005,95966.0,95941.0,0.065204]
[1739936167834,4.805662,95964.0,95941.0,0.065204]
[1739936168260,4.805662,95965.0,95941.0,0.065204]
[1739936168475,0.004,95961.0,95941.0,0.065204]
[1739936168728,4.805662,95960.0,95941.0,0.065204]
[1739936169872,0.005,95964.0,95941.0,0.065204]
[1739936170215,0.01634742,95956.0,95941.0,0.065204]
[1739936170421,3.191155,95955.0,95941.0,0.065204]
[1739936170556,3.119755,95955.0,95941.0,0.065204]
[1739936170761,3.108254,95955.0,95941.0,0.065204]
[1739936170986,3.124755,95955.0,95941.0,0.065204]
[1739936171194,3.029517,95955.0,95941.0,0.065204]
[1739936171367,3.501914,95955.0,95941.0,0.065204]
[1739936171765,3.030517,95955.0,95941.0,0.065204]
[1739936172569,0.10250365,95954.0,95941.0,0.065204]
[1739936172770,2.840959,95953.0,95941.0,0.065204]
[1739936174241,2.255206,95952.0,95941.0,0.065204]
[1739936174442,2.78208,95953.0,95941.0,0.065204]
[1739936174780,2.78308,95953.0,95941.0,0.065204]
[1739936174987,2.255362,95952.0,95941.0,0.065204]
[1739936175304,2.256362,95952.0,95941.0,0.065204]
[1739936175629,2.00931,95951.0,95941.0,0.065204]
[1739936176374,0.01634789,95949.0,95941.0,0.065204]
[1739936176585,1.439116,95948.0,95941.0,0.04885614]
[1739936176774,1.720417,95951.0,95941.0,0.05834175]
[1739936177268,0.023,95965.0,95941.0,0.05834175]
[1739936177399,4.805662,95964.0,95941.0,0.05834175]
[1739936177608,0.01634787,95949.0,95941.0,0.05834175]
[1739936177818,1.441116,95948.0,95941.0,0.05834175]
[1739936178072,0.001,95951.0,95941.0,0.04970714]
[1739936178285,0.0163479,95948.0,95941.0,0.04970714]
[1739936178803,0.83364,95947.0,95941.0,0.04970714]
[1739936180559,0.241419,95946.0,95941.0,0.04970714]
[1739936180765,0.241419,95947.0,95941.0,0.04970714]
[1739936180919,0.188919,95947.0,95941.0,0.05070714]
[1739936181126,0.271509,95947.0,95941.0,0.04970714]
[1739936181555,0.271509,95947.0,95941.0,0.05070714]
[1739936181754,0.271509,95947.0,95941.0,0.04970714]
[1739936182558,4.793562,95964.0,95941.0,0.04970714]
[1739936182939,4.793562,95964.0,95941.0,0.05927785]